[Event "71st Greek Championship 2022"]
[Site "Athens"]
[Date "2022.12.10"]
[Round "8.5"]
[White "Marinakis, Hristos"]
[Black "Alexakis, Dimitris"]
[Result "0-1"]
[ECO "B48"]
[WhiteElo "2118"]
[BlackElo "2486"]
[Annotator "TA"]
[PlyCount "46"]
[EventDate "2022.12.04"]
[EventType "tourn"]
[EventCountry "GRE"]
[SourceTitle "playchess.com"]
[Source "ChessBase"]
[SourceQuality "1"]
[TimeControl "40/5400+30:1800+30"]

{[%evp 11,46,16,35,4,8,0,8,-21,0,7,9,22,68,18,32,27,29,0,19,0,0,-91,-69,-118,-110,-181,-164,-148,-86,-410,-422,-426,-428,-916,-749,-697,-448]} 1. e4 {[%emt 0:00:03]} c5 {[%emt 0:02:16]} 2. Nf3 {[%emt 0:00:07]} e6 {[%emt 0:00:35]} 3. d4 {[%emt 0:00:05]} cxd4 {[%emt 0:00:03]} 4. Nxd4 {[%emt 0:00:04]} Nc6 {[%emt 0:00:03]} 5. Nc3 {[%emt 0:00:05]} Qc7 {[%emt 0:00:04]} 6. Be3 {[%emt 0:00:17]} a6 {[%emt 0:00:24]} 7. g4 {[%emt 0:00:43] 7.g4 is the modern continuation. B48: Sicilian: Taimanov: 5 Nc3 Qc7 6 Be3 a6 without Be2.} b5 {[%emt 0:05:56]} 8. Nxc6 {[%emt 0:00:16]} Qxc6 {[%emt 0:01:47]} 9. Qd2 {[%emt 0:01:08] The position is equal.} Bb7 {[%emt 0:13:02]} (9... b4 $5 {[%cal Rb4c3]} 10. Ne2 Qxe4 $15) 10. O-O-O {[%emt 0:05:41]} Nf6 {[%emt 0:02:49][%csl LRe4,LRg4][%cal Bg8f6,Bf6d7,Bd7b6,Bb6c4][%mdl 32] [#] Threatens to win with ...b4.} 11. f3 {[%emt 0:06:04]} d6 {[%emt 0:02:23]} (11... b4 $11 12. Ne2 d5) 12. Bg2 {[%emt 0:11:02]} (12. a3 $14) 12... Be7 {[%emt 0:05:01]} 13. g5 {[%emt 0:09:05]} Nd7 {[%emt 0:02:15]} 14. f4 {[%emt 0:00:13]} Nb6 {[%emt 0:12:48] [#]} 15. Qd4 $146 {[%emt 0:21:47]} ({Predecessor:} 15. b3 Rc8 16. Ne2 O-O 17. f5 e5 18. Ng3 g6 19. f6 Bd8 20. h4 Nd7 21. Kb1 {1-0 (70) Bleeker,K (1823)-Boelhouwer,C (2151) Vlissingen 2022}) 15... Nc4 {[%emt 0:00:33]} 16. h4 {[%emt 0:05:01]} (16. Qxg7 $11 Nxe3 17. Qxh8+ Kd7 18. Qxh7) 16... b4 {[%emt 0:15:27][%cal Bb5b4,Bb4c3,Bc3c2][%mdl 32] ...e5 is the strong threat.} 17. Ne2 {[%emt 0:01:01]} (17. Nd5 $15 exd5 18. exd5) 17... Rc8 $17 {[%emt 0:00:23]} 18. c3 {[%emt 0:02:00]} (18. Kb1 $17) 18... O-O {[%emt 0:05:17] Strongly threatening ...Qb5.} 19. Kb1 {[%emt 0:01:53] [#]} d5 {[%emt 0:03:39]} (19... Qb5 $142 $1 20. cxb4 d5) 20. e5 $2 {[%emt 0:08:28][%mdl 8192] Now White is beyond hope.} (20. exd5 $2 {loses.} Qb5 21. cxb4 Qxb4 $17) (20. Bc1 $17) 20... Qb5 $19 {[%emt 0:00:45]} 21. Bc1 {[%emt 0:04:54] Black is clearly winning.} bxc3 {[%emt 0:00:34]} 22. b3 {[%emt 0:00:23]} (22. Nxc3 $142 Na3+ 23. Ka1 Nc2+ 24. Kb1 Nxd4 25. Nxb5 Nxb5 26. h5) 22... Na3+ {[%emt 0:00:26]} 23. Bxa3 {[%emt 0:00:12]} c2+ {[%emt 0:00:06] Weighted Error Value: White=0.68/Black=0.26 (precise)} (23... Bxa3 $2 {perishes.} 24. Nxc3 Qc6 25. Rh3 $19) 0-1

[Event "71st Greek Championship 2022"]
[Site "Athens"]
[Date "2022.12.11"]
[Round "9.1"]
[White "Alexakis, Dimitris"]
[Black "Skembris, Spyridon"]
[Result "0-1"]
[ECO "C56"]
[WhiteElo "2486"]
[BlackElo "2381"]
[Annotator "TA"]
[PlyCount "146"]
[EventDate "2022.12.04"]
[EventType "tourn"]
[EventCountry "GRE"]
[SourceTitle "playchess.com"]
[Source "ChessBase"]
[SourceQuality "1"]
[TimeControl "40/5400+30:1800+30"]

{[%evp 21,146,0,0,0,0,-18,-7,-13,-13,-6,-9,-12,0,0,0,-5,-3,-9,0,-8,0,-7,0,-15,-9,-16,-14,-14,-15,-14,-8,-22,-14,-18,-17,-24,-12,-49,-8,-8,0,0,0,0,0,0,0,0,0,0,0,0,0,0,0,0,0,0,0,0,0,0,0,0,0,0,0,0,0,0,0,0,0,0,0,0,0,0,0,0,0,0,0,0,0,-8,0,0,0,0,0,-8,0,-12,-8,-29964,-29966,-29967,-29967,-29964,-29964,-29968,-29969,-29973,-29970,-29970,-29970,-29970,-29970,-29970,-29971,-29977,-29977,-29977,-29975,-29975,-29976,-29976,-29977,-29977,-29978,-29978,-29979,-29979,-29980,-29980,-29980]} 1. e4 {[%emt 0:03:48]} e5 {[%emt 0:09:59]} 2. Nf3 {[%emt 0:01:09]} Nc6 {[%emt 0:03:59]} 3. Bc4 {[%emt 0:00:16]} Nf6 {[%emt 0:00:00]} 4. d4 {[%emt 0:01:14]} exd4 {[%emt 0:00:00]} 5. O-O {[%emt 0:00:15]} Nxe4 {[%emt 0:00:00]} 6. Re1 {[%emt 0:00:10]} d5 {[%emt 0:00:00]} 7. Bxd5 {[%emt 0:00:06]} Qxd5 {[%emt 0:00:16]} 8. Nc3 {[%emt 0:11:21]} Qd7 {[%emt 0:00:00]} 9. Nxe4 {[%emt 0:00:07]} Be7 {[%emt 0:00:00]} 10. Bg5 {[%emt 0:00:04]} O-O {[%emt 0:00:00]} 11. Bxe7 {[%emt 0:00:04]} Qxe7 {[%emt 0:00:00]} 12. Nxd4 {[%emt 0:00:06] C56: Two Knights: 4 d4 exd4 5 0-0 Nxe4.} Bd7 {[%emt 0:00:00]} 13. Nb3 {[%emt 0:00:11]} Rae8 {[%emt 0:04:59]} 14. Qd2 {[%emt 0:17:33] The position is equal.} Bc8 {[%emt 0:00:00] [#]} 15. Qc3 $146 {[%emt 0:05:13]} ({Predecessor:} 15. Nc3 Qf6 16. Rxe8 Rxe8 17. Re1 Rd8 18. Qe3 h6 19. h3 Bf5 20. Re2 Qg6 21. Ne4 {0-1 (58) Gayson,P (2140)-Cumming,R (2289) Daventry 2020}) 15... Qe5 {[%emt 0:01:20]} (15... Qb4 {keeps more tension.} 16. f3 Bf5 17. Nbc5 Re5) 16. f3 {[%emt 0:09:03]} Qxc3 {[%emt 0:04:22]} 17. Nxc3 {[%emt 0:00:55] Pair of Knights!} Bf5 {[%emt 0:13:56]} 18. Rxe8 {[%emt 0:11:46]} Rxe8 {[%emt 0:00:00]} 19. Rc1 {[%emt 0:00:23]} Nb4 {[%emt 0:01:51]} 20. Nd4 {[%emt 0:00:33]} Bg6 {[%emt 0:00:46]} 21. a3 {[%emt 0:00:51]} Rd8 {[%emt 0:13:14]} 22. axb4 {[%emt 0:02:37]} Rxd4 $11 {[%emt 0:00:06][%mdl 4096] Endgame KRB-KRN} 23. b5 {[%emt 0:00:12]} Kf8 {[%emt 0:03:04]} 24. Ra1 {[%emt 0:01:09]} b6 {[%emt 0:01:51]} (24... Bxc2 25. Rxa7 Ke7 26. Rxb7 $16) 25. Rxa7 {[%emt 0:10:59]} Rd7 {[%emt 0:00:22]} 26. Kf2 {[%emt 0:09:50]} Bxc2 {[%emt 0:00:22]} 27. Ke3 {[%emt 0:01:03]} Ke7 {[%emt 0:00:29]} 28. h4 {[%emt 0:09:18]} h5 {[%emt 0:04:22]} 29. Nd5+ {[%emt 0:03:12]} Rxd5 {[%emt 0:04:51]} (29... Kd6 $5 {[%cal Rd6d5]} 30. Nf4 g6 $11) 30. Rxc7+ {[%emt 0:00:02]} Kd6 {[%emt 0:00:37]} 31. Rxc2 {[%emt 0:00:22]} Rxb5 {[%emt 0:00:07] KR-KR} 32. Kf4 {[%emt 0:00:26]} f6 {[%emt 0:05:23]} 33. g4 {[%emt 0:01:36]} g6 {[%emt 0:00:41]} 34. Rd2+ {[%emt 0:00:14]} Ke6 {[%emt 0:00:54]} 35. Re2+ {[%emt 0:00:53]} Kf7 {[%emt 0:00:49]} 36. gxh5 {[%emt 0:00:49]} Rxh5 {[%emt 0:00:12]} 37. Kg4 {[%emt 0:00:08]} Rb5 {[%emt 0:00:32]} 38. Rc2 {[%emt 0:00:38]} Kg7 {[%emt 0:00:00]} 39. Kg3 $1 {[%emt 0:00:50]} Kh6 {[%emt 0:00:13]} 40. Rd2 {[%emt 0:00:00]} Rb4 41. Rd6 {[%emt 0:11:03]} Kg7 {[%emt 0:06:30]} 42. Rd2 {[%emt 0:00:00]} Kf7 {[%emt 0:04:51]} 43. Re2 {[%emt 0:00:22]} Rb5 44. Kf4 {[%emt 0:01:24]} Rb3 45. Kg4 {[%emt 0:00:41]} Rb4+ 46. Kg3 {[%emt 0:01:13]} Kg7 {[%emt 0:06:15]} 47. Rd2 {[%emt 0:02:43]} Kh6 {[%emt 0:01:38]} 48. Rd6 {[%emt 0:03:30]} f5 {[%emt 0:00:30]} 49. Rd2 {[%emt 0:03:28]} b5 50. Rc2 {[%emt 0:00:30]} g5 {[%emt 0:09:11]} 51. hxg5+ {[%emt 0:00:30]} Kxg5 {[%emt 0:00:30]} 52. Rc5 {[%emt 0:03:19]} Rb3 {[%emt 0:02:06]} 53. Rc2 {[%emt 0:05:37]} f4+ {[%emt 0:04:47]} 54. Kg2 {[%emt 0:00:39]} Kh4 {[%emt 0:00:11]} 55. Rd2 {[%emt 0:02:22]} Rb4 {[%emt 0:01:48]} 56. Re2 {[%emt 0:01:04]} Rc4 {[%emt 0:02:00]} 57. Kf2 {[%emt 0:00:28]} b4 {[%emt 0:00:43][%cal Bb5b4,Bb4b3][%mdl 32] ( -> ...b3)} 58. Ke1 $2 {[%emt 0:00:37][%mdl 8192] [#] Now White is beyond hope.} (58. Re4 $11 Rc2+ 59. Ke1) 58... b3 {[%emt 0:01:07] Black mates.} 59. Re4 {[%emt 0:00:25]} Rc1+ {[%emt 0:00:20]} 60. Kd2 {[%emt 0:00:36]} Rc2+ {[%emt 0:00:12]} 61. Kd1 {[%emt 0:00:28]} Kg3 $1 {[%emt 0:00:12]} ({Weaker is} 61... Rxb2 62. Rxf4+ Kg5 63. Rg4+ (63. Rb4 Kf5 $11) 63... Kf6 64. Rb4 $11) 62. Rd4 {[%emt 0:00:21]} Rxb2 {[%emt 0:02:39]} (62... Kxf3 63. Rd3+ Kf2 64. Rxb3 $19) 63. Rd3 {[%emt 0:00:00]} Kg2 {[%emt 0:01:27]} 64. Kc1 {[%emt 0:00:33]} Rf2 {[%emt 0:00:13]} 65. Rxb3 {[%emt 0:00:05]} Rxf3 {[%emt 0:00:05]} 66. Rb8 {[%emt 0:00:02]} Rd3 {[%emt 0:00:51]} 67. Kc2 {[%emt 0:00:39]} Rd7 {[%emt 0:00:16]} 68. Rg8+ {[%emt 0:00:05]} Kf2 {[%emt 0:00:11]} 69. Rf8 {[%emt 0:01:02]} f3 {[%emt 0:00:10][%cal Bf4f3,Bf3f2][%mdl 32]} 70. Rf6 {[%emt 0:00:12]} Ke2 {[%emt 0:00:14]} 71. Re6+ {[%emt 0:00:04]} Kf1 {[%emt 0:00:06]} 72. Rf6 {[%emt 0:00:06]} f2 {[%emt 0:00:10]} 73. Rf8 {[%emt 0:00:04]} Rg7 {[%emt 0:00:31] Weighted Error Value: White=0.18 (very precise) /Black=0.02 (flawless)} 0-1

[Event "71st Greek Championship 2022"]
[Site "Athens"]
[Date "2022.12.11"]
[Round "9.2"]
[White "Koutlas, Nikolaos"]
[Black "Marinakis, Hristos"]
[Result "1-0"]
[ECO "C54"]
[WhiteElo "2267"]
[BlackElo "2118"]
[Annotator "TA"]
[PlyCount "81"]
[EventDate "2022.12.04"]
[EventType "tourn"]
[EventCountry "GRE"]
[SourceTitle "playchess.com"]
[Source "ChessBase"]
[SourceQuality "1"]
[TimeControl "40/5400+30:1800+30"]

{[%evp 9,81,18,18,16,33,27,25,26,30,14,23,6,32,40,40,40,40,40,43,36,35,32,41,14,27,26,30,14,20,0,41,37,38,55,73,45,71,79,79,78,204,204,203,200,185,192,199,145,218,181,205,204,368,380,359,369,375,185,206,0,356,353,475,438,797,423,481,482,1065,1038,29982,2901,29995,5863]} 1. e4 {[%emt 0:00:03]} e5 {[%emt 0:00:12]} 2. Nf3 {[%emt 0:00:08]} Nc6 {[%emt 0:00:04]} 3. Bc4 {[%emt 0:00:08]} Bc5 {[%emt 0:00:05]} 4. c3 {[%emt 0:00:04]} Nf6 {[%emt 0:00:05]} 5. d3 {[%emt 0:00:04]} a6 {[%emt 0:01:11]} ({But not} 5... d5 6. exd5 Nxd5 7. Qb3 $16) 6. a4 {[%emt 0:00:06] C54: Giuoco Piano: 4 c3 Nf6, main lines with 5 d4 and 5 d3.} Ba7 {[%emt 0:03:55]} 7. O-O {[%emt 0:02:10]} O-O {[%emt 0:01:01]} 8. Re1 {[%emt 0:00:06] White has an edge.} h6 {[%emt 0:07:43]} 9. h3 {[%emt 0:00:35]} d6 {[%emt 0:01:47]} 10. b4 {[%emt 0:01:51]} (10. Nbd2 {keeps more tension.} Nh5 11. Nf1 Qf6 12. Be3) 10... Be6 {[%emt 0:02:37]} 11. Bxe6 {[%emt 0:01:41]} fxe6 {[%emt 0:00:05]} 12. Be3 {[%emt 0:00:09]} Bxe3 {[%emt 0:04:16]} 13. Rxe3 {[%emt 0:00:06]} Qe8 {[%emt 0:03:34]} 14. Nbd2 {[%emt 0:01:03]} Nh5 {[%emt 0:04:32]} 15. g3 {[%emt 0:00:47]} Qf7 {[%emt 0:05:07] [#]} 16. Nf1 $146 {[%emt 0:10:37]} ({Predecessor:} 16. Qf1 Kh7 17. Nc4 Qf6 18. b5 Nd4 19. Nxd4 exd4 20. e5 Qf7 21. cxd4 axb5 22. Nb2 dxe5 23. dxe5 {0-1 (35) Abeysinghe,H (1546)-Rouda Essa,A (1893) Muscat 2022}) 16... Ne7 {[%emt 0:04:19]} 17. N1h2 {[%emt 0:00:42]} Nf6 {[%emt 0:04:28]} 18. Re2 {[%emt 0:04:30]} Ng6 {[%emt 0:01:22]} 19. Rb2 {[%emt 0:05:13]} d5 {[%emt 0:04:54]} 20. Qe2 {[%emt 0:03:45]} dxe4 {[%emt 0:10:25]} 21. dxe4 {[%emt 0:00:08]} Rad8 {[%emt 0:00:06]} 22. b5 {[%emt 0:07:55]} Qe7 {[%emt 0:10:23]} 23. bxa6 {[%emt 0:01:37]} bxa6 {[%emt 0:00:05]} 24. Qc4 {[%emt 0:00:44] Against Qc5} Rb8 {[%emt 0:03:46] Against a5} (24... Qd7 $16) 25. Rxb8 $1 $18 {[%emt 0:05:11]} Rxb8 {[%emt 0:00:05]} 26. Qxa6 {[%emt 0:00:12]} Qc5 {[%emt 0:07:45]} 27. Qxe6+ {[%emt 0:07:26]} Kh7 {[%emt 0:00:27]} 28. Qf5 {[%emt 0:05:17]} ({White should play} 28. Ng4 $18 Nxg4 29. Qxg4 (29. hxg4 $2 {too greedy.} Qxc3 30. Re1 Qxf3 $19)) 28... Ng8 {[%emt 0:01:31]} (28... Qxc3 $16 {is a better defense.} 29. Rf1 Ng8) 29. c4 {[%emt 0:03:41]} N8e7 {[%emt 0:01:52]} 30. Qe6 {[%emt 0:00:27]} Rb2 $2 {[%emt 0:04:09]} (30... Rb6 {keeps fighting.} 31. Qd7 Qxc4) 31. Ng4 {[%emt 0:01:10]} Rb6 {[%emt 0:02:15]} 32. Qf7 {[%emt 0:02:58]} Qd6 {[%emt 0:02:29]} 33. Ne3 {[%emt 0:02:03]} (33. Kg2 $142) 33... Qd3 {[%emt 0:03:34] White must now prevent ...Rf6.} 34. Ng4 {[%emt 0:07:30] Prevents Rf6.} (34. Rd1 $142 Qxe4 35. Nd2 (35. Rd7 Rf6 $17)) 34... Qd6 {[%emt 0:03:45]} 35. a5 {[%emt 0:02:49][%cal Ba4a5,Ba5a6][%mdl 32]} Rb8 {[%emt 0:02:15]} 36. a6 {[%emt 0:00:28]} Ra8 {[%emt 0:00:33] Inhibits c5.} (36... Nc6 $142 37. c5 Qe7 38. Qxe7 Ngxe7) 37. a7 {[%emt 0:00:14][%cal Oc4c5] Threatens to win with c5!} Nc6 {[%emt 0:00:43]} 38. c5 {[%emt 0:01:14]} Qd8 {[%emt 0:01:22]} (38... Qe7 $142 39. Qf5 Rxa7 40. Rxa7 Nxa7 41. Nfxe5 Qg5 42. Qxg5 hxg5) 39. Ra6 {[%emt 0:02:59]} Nge7 {[%emt 0:00:38] [#]} 40. Nfxe5 {[%emt 0:00:00]} (40. Ng5+ $142 $1 {[%mdl 512]} Kh8 41. Nxh6 $1 {[%mdl 512]} Qf8 42. Qxf8+ Rxf8 43. a8=Q Rc8 44. Nhf7+ Kg8 45. Qxc8+ $3 {[%mdl 512]} Nxc8 46. Rxc6) 40... Rxa7 {[%emt 0:00:00]} 41. Rxa7 {[%emt 0:00:39] Weighted Error Value: White=0.36/Black=0.59} (41. Nf6+ $142 Kh8 {[#]} 42. Qg6 $3 {[%mdl 512]} Qd1+ 43. Kh2 Qg1+ 44. Kxg1 Nxg6 45. Nxg6#) 1-0

[Event "71st Greek Championship 2022"]
[Site "Athens"]
[Date "2022.12.11"]
[Round "9.3"]
[White "Alexiadis, Hristos"]
[Black "Trimitzios, Petros"]
[Result "1-0"]
[ECO "A48"]
[WhiteElo "2342"]
[BlackElo "2358"]
[Annotator "TA"]
[PlyCount "151"]
[EventDate "2022.12.04"]
[EventType "tourn"]
[EventCountry "GRE"]
[SourceTitle "playchess.com"]
[Source "ChessBase"]
[SourceQuality "1"]
[TimeControl "40/5400+30:1800+30"]

{[%evp 14,151,20,18,60,47,44,40,60,56,59,57,45,62,70,35,31,0,11,10,12,12,13,10,19,7,4,0,0,0,0,0,22,0,0,0,9,0,9,9,17,17,34,27,27,36,35,34,37,34,42,37,28,0,40,30,45,33,44,21,12,8,46,9,29,0,30,0,50,23,41,27,42,41,57,44,41,49,43,49,130,131,163,159,152,147,165,167,162,122,219,202,208,191,263,288,286,155,273,162,172,116,116,123,133,123,111,11,12,12,27,0,381,382,1015,993,737,792,681,474,461,425,852,830,11435,9014,1451,29952,12756,29948,7341,7192,6199,6179,5306,3720,29982,29983,29988,29989]} 1. d4 {[%emt 0:05:13]} Nf6 {[%emt 0:02:14]} 2. Nf3 {[%emt 0:00:45]} g6 {[%emt 0:01:00]} 3. Bg5 {[%emt 0:00:06]} Bg7 {[%emt 0:01:36]} 4. c3 {[%emt 0:00:22]} d6 {[%emt 0:01:58]} 5. Nbd2 {[%emt 0:00:12]} h6 {[%emt 0:00:40]} 6. Bh4 {[%emt 0:00:09]} g5 {[%emt 0:00:05]} 7. Bg3 {[%emt 0:00:09]} Nh5 {[%emt 0:00:03]} 8. e4 {[%emt 0:02:21]} c6 {[%emt 0:03:31] A48: 1 d4 Nf6 2 Nf3 g6: Torre, London and Colle Systems.} 9. Bd3 {[%emt 0:05:36]} Nxg3 {[%emt 0:04:09]} 10. hxg3 {[%emt 0:00:00]} Nd7 {[%emt 0:00:51] [#] White is slightly better.} 11. Qe2 $146 {[%emt 0:04:47]} ({Predecessor:} 11. Qc2 Qc7 12. O-O Nf8 13. a4 Bg4 14. Rfe1 e5 15. dxe5 dxe5 16. Nc4 Ne6 17. Ne3 Bxf3 18. gxf3 {1-0 (44) Stamatis,I (1876)-Stefanidi,M (1983) Tornelo INT 2021}) 11... Qc7 {[%emt 0:00:15]} 12. Nc4 {[%emt 0:01:30]} Nb6 {[%emt 0:10:50]} 13. Ne3 {[%emt 0:00:34]} e6 {[%emt 0:00:16]} 14. Rh5 {[%emt 0:14:07]} Bd7 {[%emt 0:03:24]} 15. O-O-O {[%emt 0:06:25]} c5 {[%emt 0:02:34]} 16. Bb5 cxd4 {[%emt 0:00:57]} 17. Nxd4 {[%emt 0:02:47] Threatening Bxd7+.} a6 {[%emt 0:00:09]} 18. Bxd7+ {[%emt 0:00:39]} Nxd7 {[%emt 0:00:19][%cal Bb6d7,Bd7c5,Bc5a4][%mdl 32]} 19. Rhh1 {[%emt 0:08:51]} Nc5 {[%emt 0:03:27]} 20. Nec2 {[%emt 0:15:51]} O-O-O {[%emt 0:12:58]} 21. Nb3 {[%emt 0:02:37]} Na4 {[%emt 0:01:15]} 22. Rd3 {[%emt 0:00:41]} Nb6 {[%emt 0:00:24]} 23. Ne3 {[%emt 0:00:47]} Qc6 {[%emt 0:02:03]} 24. Rhd1 {[%emt 0:09:16]} Rd7 {[%emt 0:02:07]} 25. Nc2 {[%emt 0:02:06]} (25. R3d2 {keeps more tension.} Kc7 26. Qd3 Kb8 27. Nd4) 25... Rhd8 {[%emt 0:01:14]} 26. Kb1 {[%emt 0:01:53]} Bf8 {[%emt 0:06:06]} 27. f4 {[%emt 0:00:20]} d5 {[%emt 0:07:26]} 28. Nbd4 {[%emt 0:04:55]} Qc7 {[%emt 0:02:41]} 29. e5 {[%emt 0:00:03]} Na4 {[%emt 0:00:13]} 30. Nb3 {[%emt 0:02:14]} Qc4 {[%emt 0:06:23]} 31. Ncd4 {[%emt 0:05:18][%cal Bc2d4,Bd4b3,Bb3d2,Bd2f3][%mdl 32]} (31. Qf3 {seems wilder.} Kb8 32. Rh1 Rc8 33. Ncd4) 31... Nb6 {[%emt 0:02:46]} 32. Qc2 {[%emt 0:00:21]} Qc7 {[%emt 0:00:26]} 33. Qe2 {[%emt 0:00:43]} Nc4 {[%emt 0:01:34]} 34. Nd2 {[%emt 0:00:55]} Bc5 {[%emt 0:00:43]} 35. N4b3 {[%emt 0:01:53]} Bb6 {[%emt 0:02:57]} 36. Nxc4 {[%emt 0:00:11]} Qxc4 {[%emt 0:00:30]} 37. Nd2 {[%emt 0:00:30] Against Qe4} Qc6 {[%emt 0:00:30]} 38. Nf3 {[%emt 0:00:30]} Qc4 {[%emt 0:00:30]} 39. Nd2 {[%emt 0:00:30] Against Qe4} Qc5 {[%emt 0:00:30]} 40. Nb3 {[%emt 0:00:30]} Qb5 {[%emt 0:00:30]} ({Black should play} 40... Qc4 $11) 41. Qf3 {[%emt 0:30:30]} Qa4 {[%emt 0:30:30]} 42. Nd4 {[%emt 0:00:30]} Re7 {[%emt 0:00:30][%cal Bd7e7,Be7e8,Be8c8,Bc8c4][%mdl 32]} 43. Rh1 gxf4 {[%emt 0:00:00]} 44. gxf4 {[%emt 0:00:00]} Rh8 {[%emt 0:00:00]} 45. g4 {[%emt 0:00:00]} Ree8 {[%emt 0:05:51]} 46. Rd2 {[%emt 0:00:00][%cal Bd3d2,Bd2h2,Bh2h6][%mdl 32]} Qc4 {[%emt 0:00:00]} (46... Kb8 $14) 47. Qd1 $16 {[%emt 0:00:00]} Kb8 {[%emt 0:00:00]} 48. Rdh2 {[%emt 0:01:34]} Rhg8 {[%emt 0:00:00]} 49. Rxh6 {[%emt 0:01:02]} Bxd4 {[%emt 0:00:16]} 50. cxd4 {[%emt 0:00:00]} (50. Qxd4 Rxg4 51. Rf6 Rg7 $11) 50... Rc8 {[%emt 0:00:00][%cal Og8g4]} 51. g5 {[%emt 0:00:00]} Qb4 {[%emt 0:00:00]} (51... a5 $16 52. Rh7 Rgf8) 52. a3 $18 Qb6 {[%emt 0:00:00]} 53. Rh7 Rgf8 {[%emt 0:00:00]} (53... Rc7 $142 54. Ka2 a5) 54. R1h3 {[%emt 0:00:00]} Rc4 {[%emt 0:02:00]} 55. Rd3 {[%emt 0:01:07]} (55. Rb3 $18 Qc6 56. Qd3) 55... Qb5 {[%emt 0:00:30]} (55... a5 $16 {keeps fighting.} 56. Qb3 Qa6) 56. Qb3 {[%emt 0:00:30]} (56. f5 $142) 56... Qc6 {[%emt 0:00:30]} 57. Ka2 {[%emt 0:00:30]} (57. f5 $18) 57... a5 $16 {[%emt 0:00:30] ...a4 is the strong threat.} 58. Rc3 {[%emt 0:00:30] White has more active pieces.} a4 {[%emt 0:00:30]} 59. Qc2 {[%emt 0:00:30]} Qb5 {[%emt 0:00:30] [#]} 60. Rxc4 {[%emt 0:00:30]} ({White should try} 60. Qd3 $1 $16) 60... dxc4 {[%emt 0:00:30][%mdl 4096] Endgame KQR-KQR} 61. Qc3 {[%emt 0:00:30] Black must now prevent Qb4.} Qd5 {[%emt 0:00:30]} 62. Rg7 {[%emt 0:00:30]} Rh8 $2 {[%emt 0:00:30][%mdl 8192]} (62... Kc8 $11 {and Black is okay.}) 63. Rxf7 $18 {[%emt 0:00:30]} Rh1 $2 {[%emt 0:00:30]} (63... Rg8 64. Re7 Kc8) 64. g6 {[%emt 0:00:30] Intending g7 and mate.} Rg1 {[%emt 0:00:30]} 65. g7 {[%emt 0:00:30] White threatens Rf8+ and mate.} Ka7 {[%emt 0:00:30]} 66. g8=Q {[%emt 0:00:30]} Rxg8 {[%emt 0:00:30] [#]} 67. Rc7 $1 {[%emt 0:00:30] And now Rc5 would win.} Rg4 {[%emt 0:00:30]} (67... Qb5 $142 68. Qxc4 (68. Rxc4 Qd5 $11) 68... Qxc4+ 69. Rxc4 Re8 70. Rxa4+ Kb6 71. Rb4+ Kc7) 68. Rc5 {[%emt 0:00:30]} (68. Qxc4 Rxf4 69. Qxd5 exd5 $11) (68. Rxc4 Ka6 69. b3 Rg2+ 70. Ka1 Rg1+ 71. Kb2 Rg2+ 72. Kc1 Rg1+ 73. Kb2 Rg2+ 74. Kc1 Rg1+ 75. Kb2 $11) 68... Qd7 {[%emt 0:00:30]} 69. d5 {[%emt 0:00:30] Threatening mate with Qa5+.} b6 {[%emt 0:00:30] Inhibits Qa5+.} 70. dxe6 {[%emt 0:00:30]} ({Worse is} 70. Rxc4 Qxd5 71. Qd4 Qxd4 72. Rxd4 b5 $11) 70... Qb7 {[%emt 0:00:30]} 71. Rxc4 {[%emt 0:00:30]} Qd5 {[%emt 0:00:30]} 72. Qd4 {[%emt 0:00:30]} ({Not} 72. e7 Rxf4 73. e8=Q (73. e8=R Rxc4 $11) 73... Rxc4 $18) 72... Qxe6 {[%emt 0:00:30]} 73. Ka1 {[%emt 0:00:30] White wants to mate with Rc7+.} Kb7 {[%emt 0:00:30] Prevents Rc7+.} 74. Rc1 {[%emt 0:00:30]} Qe8 {[%emt 0:00:30]} 75. Qe4+ {[%emt 0:00:30]} Ka6 {[%emt 0:00:30]} 76. Qe2+ {[%emt 0:00:30] Weighted Error Value: White=0.18 (very precise) /Black=0.17 (very precise)} 1-0

[Event "71st Greek Championship 2022"]
[Site "Athens"]
[Date "2022.12.11"]
[Round "9.4"]
[White "Markidis, Konstantinos"]
[Black "Mitsis, Georgios"]
[Result "1/2-1/2"]
[ECO "C92"]
[WhiteElo "2290"]
[BlackElo "2365"]
[Annotator "TA"]
[PlyCount "28"]
[EventDate "2022.12.04"]
[EventType "tourn"]
[EventCountry "GRE"]
[SourceTitle "playchess.com"]
[Source "ChessBase"]
[SourceQuality "1"]
[TimeControl "40/5400+30:1800+30"]

{[%evp 27,28,0,31]} 1. e4 {[%emt 0:00:08]} e5 {[%emt 0:00:24]} 2. Nf3 {[%emt 0:00:06]} Nc6 {[%emt 0:00:10]} 3. Bb5 {[%emt 0:00:06]} a6 {[%emt 0:00:06]} 4. Ba4 {[%emt 0:00:07]} Nf6 {[%emt 0:00:07]} 5. O-O {[%emt 0:00:06]} Be7 {[%emt 0:00:06]} 6. Re1 {[%emt 0:00:05]} b5 {[%emt 0:00:07]} 7. Bb3 {[%emt 0:00:05]} d6 {[%emt 0:00:07]} 8. c3 {[%emt 0:00:04]} O-O {[%emt 0:00:07]} 9. h3 {[%emt 0:00:04]} Bb7 {[%emt 0:00:06]} 10. d4 {[%emt 0:00:05]} Re8 {[%emt 0:00:06] [#]} 11. Ng5 $146 {[%emt 0:00:06]} ({Predecessor:} 11. Nbd2 Bf8 12. a3 h6 13. Bc2 Nb8 14. b3 Nbd7 15. Bb2 g6 16. a4 Bg7 17. Bd3 bxa4 18. Rxa4 d5 19. dxe5 Nxe4 20. Nxe4 dxe4 21. Bxe4 Bxe4 22. Raxe4 Nxe5 23. Nxe5 Qxd1 24. Rxd1 Rxe5 25. Rxe5 Bxe5 {½-½ (44) Firouzja,A (2778)-Le,Q (2728) Miami 2022}) 11... Rf8 {[%emt 0:00:07]} 12. Nf3 {[%emt 0:00:04]} Re8 {[%emt 0:00:06]} 13. Ng5 {[%emt 0:00:05] 13.Bc2 is setting a new trend.} Rf8 {[%emt 0:00:06]} 14. Nf3 {[%emt 0:00:05]} Re8 1/2-1/2